bitfinex-derivatives/quotes_ETHF0:USTF0_20240831
["timestamp","ask_amount","ask_price","bid_price","bid_amount"]
[1725101104063,1.1158,2524.2,2524.1,0.23769]
[1725101104276,1.3628,2524.2,2524.1,0.23769]
[1725101107251,1.3628,2524.2,2524.0,0.2377]
[1725101107445,1.0,2524.1,2524.0,0.2377]
[1725101112151,1.0,2524.2,2524.1,0.23769]
[1725101113052,7.26598784,2524.7,2524.5,0.23765]
[1725101113053,2.883,2524.7,2524.5,0.23765]
[1725101113263,1.3721,2524.6,2524.5,0.23765]
[1725101113558,5.70092496,2524.6,2524.5,0.23765]
[1725101117744,1.0059446,2524.8,2524.7,0.23764]
[1725101117947,0.3947446,2524.8,2524.7,0.23764]
[1725101121465,0.0059446,2524.8,2524.7,4.19844]
[1725101124257,0.0059446,2524.8,2524.7,7.40624]
[1725101124758,0.0059446,2524.8,2524.7,4.19844]
[1725101125059,0.0059446,2524.8,2524.7,7.40624]
[1725101131647,0.0059446,2524.8,2524.7,0.23764]
[1725101132159,0.0059446,2524.8,2524.6,0.23764]
[1725101132760,0.0059446,2524.8,2524.5,0.2435946]
[1725101132979,0.0059446,2524.8,2524.6,0.23764]
[1725101146472,0.0059446,2524.8,2524.5,0.0059446]
[1725101146473,0.0059446,2524.8,2524.7,0.23764]
[1725101151874,0.0059446,2524.8,2524.7,4.19844]
[1725101152074,0.3624,2525.1,2525.0,0.23761]
[1725101152376,0.7197,2525.1,2525.0,0.23761]
[1725101158182,0.3573,2525.1,2525.0,0.23761]
[1725101158385,1.0,2525.2,2525.1,0.2376]
[1725101161179,1.0,2525.2,2525.0,0.2376]
[1725101161370,0.7405,2525.1,2525.0,0.2376]
[1725101162881,0.3621,2525.1,2525.0,0.2376]
[1725101163177,1.0,2525.2,2525.1,0.2376]
[1725101163574,1.0,2525.2,2524.9,0.23761]
[1725101163677,1.0,2525.0,2524.9,0.23761]
[1725101163979,1.0,2525.0,2524.8,0.23762]
[1725101164179,0.7661,2524.9,2524.8,0.23762]
[1725101166279,0.7661,2524.9,2524.7,0.60273]
[1725101166722,0.7661,2524.9,2524.8,0.23763]
[1725101167183,0.7661,2524.9,2524.7,0.23763]
[1725101167882,0.7661,2524.9,2524.8,0.23763]
[1725101168383,0.7661,2524.9,2524.7,0.23763]
[1725101169669,0.7661,2524.9,2524.8,0.23763]
[1725101170079,0.7661,2524.9,2524.7,0.23763]
[1725101170679,0.7661,2524.9,2524.6,0.23764]
[1725101171286,0.7661,2524.9,2524.7,0.23763]
[1725101171584,1.0,2524.8,2524.5,4.1639446]
[1725101171778,1.0,2524.6,2524.5,4.1639446]
[1725101171977,1.0,2524.6,2524.5,0.0059446]
[1725101172179,1.7406,2524.6,2524.5,0.0059446]
[1725101172881,1.7406,2524.6,2524.5,0.2435946]
[1725101174194,1.3827,2524.9,2524.8,0.23763]
[1725101174683,1.3827,2524.9,2524.6,0.371]
[1725101174886,1.0,2524.7,2524.5,0.2435946]
[1725101175278,1.3829,2524.7,2524.5,0.2435946]
[1725101176086,0.3567,2524.8,2524.6,0.23764]
[1725101176705,0.3567,2524.8,2524.5,0.2435946]
[1725101177002,0.3567,2524.8,2524.6,0.23764]
[1725101177197,0.3567,2524.8,2524.5,0.2435946]
[1725101177393,0.3567,2524.8,2524.5,0.0059446]
[1725101177597,0.3567,2524.8,2524.6,0.23764]
[1725101179998,0.3567,2524.8,2524.7,0.23764]
[1725101183793,1.3827,2524.9,2524.8,0.23763]
[1725101183999,1.0,2525.1,2524.7,3.2078]
[1725101184400,1.0,2525.1,2524.8,0.3879]
[1725101184792,1.0,2525.1,2525.0,0.23761]
[1725101188295,1.1297,2525.2,2525.1,0.2376]
[1725101188498,2.1297,2525.2,2525.1,0.2376]
[1725101189307,1.1297,2525.2,2525.1,0.2376]
[1725101190604,0.0059446,2525.3,2525.2,0.23759]
[1725101191009,0.0059446,2525.3,2525.2,4.19759]
[1725101191204,0.0059446,2525.3,2525.2,4.57979]
[1725101192109,0.0059446,2525.3,2525.2,0.61979]
[1725101192869,0.0059446,2525.3,2525.2,0.23759]
[1725101195316,0.23759,2525.2,2525.0,3.2078]
[1725101195508,0.23759,2525.2,2524.6,4.158]
[1725101195509,0.23761,2525.0,2524.6,5.12234]
[1725101195817,1.3824,2524.9,2524.6,0.60524]
[1725101196607,1.62002,2524.9,2524.6,0.60524]
[1725101196815,1.3824,2524.9,2524.6,0.60524]
[1725101197215,1.3824,2524.9,2524.7,0.23763]
[1725101198109,1.3824,2524.9,2524.8,0.23763]
[1725101198718,1.3824,2524.9,2524.6,0.3676]
[1725101198719,0.7453,2525.1,2524.6,0.3676]
[1725101199018,1.0967,2525.1,2524.9,0.23761]
[1725101199407,4.5524343,2525.0,2524.9,0.23761]
[1725101199707,8.5132343,2525.0,2524.9,0.23761]
[1725101200208,4.5524343,2525.0,2524.9,0.23761]
[1725101201719,0.3514,2525.1,2525.0,0.23761]
[1725101207013,0.0059446,2525.3,2525.2,0.23759]
[1725101207328,0.3603446,2525.3,2525.2,0.23759]
[1725101207724,0.3603446,2525.3,2525.1,0.2376]
[1725101207927,1.0,2525.2,2525.0,0.2376]
[1725101208118,1.0,2525.2,2524.7,3.9403]
[1725101208312,1.0,2525.2,2525.1,0.2376]
[1725101208718,1.0,2525.2,2525.0,0.2376]
[1725101211324,0.3603446,2525.3,2525.1,0.2376]
[1725101211522,0.3603446,2525.3,2524.7,3.9403]
[1725101211730,4.16371951,2525.2,2525.1,0.23759]
[1725101211930,0.3603446,2525.3,2525.2,0.23759]
[1725101216129,4.3203446,2525.3,2525.1,0.23759]
[1725101216329,5.08520278,2525.3,2525.0,0.2376]
[1725101217236,1.0,2525.2,2525.0,0.2376]
[1725101230146,0.5979246,2525.3,2525.0,0.2376]
[1725101230548,4.19205777,2525.2,2525.1,0.23759]
[1725101231433,4.19205777,2525.2,2525.0,0.2376]
[1725101231800,4.19205777,2525.2,2525.1,0.2376]
[1725101235153,0.3603446,2525.3,2525.2,0.23759]
[1725101235351,0.3603446,2525.3,2525.2,0.61369]
[1725101245029,0.0059446,2525.3,2525.2,0.61369]
[1725101245263,0.0059446,2525.3,2525.2,4.57369]
[1725101245460,0.0059446,2525.3,2525.2,4.96144505]
[1725101245769,0.0059446,2525.3,2525.2,8.76322505]
[1725101247761,0.0059446,2525.3,2525.2,8.16924505]
[1725101248328,0.0059446,2525.3,2525.2,8.16924311]
[1725101248759,0.0059446,2525.3,2525.2,7.78149]
[1725101249861,0.0059446,2525.3,2525.2,4.57369]
[1725101250066,0.0059446,2525.3,2525.2,7.78149]
[1725101250870,0.0059446,2525.3,2525.2,8.78149]
[1725101251066,0.0059446,2525.3,2525.2,9.16921692]
[1725101253171,0.0059446,2525.3,2525.2,8.78149]
[1725101253849,0.0059446,2525.3,2525.2,5.57369]
[1725101253856,0.0059446,2525.3,2525.2,8.78149]
[1725101254466,0.0059446,2525.3,2525.2,9.16910766]
[1725101255261,0.0059446,2525.3,2525.2,8.78149]
[1725101255470,0.0059446,2525.3,2525.2,9.16910293]
[1725101255660,0.0059446,2525.3,2525.2,8.78149]
[1725101255863,0.0059446,2525.3,2525.2,9.16910277]
[1725101256271,0.0059446,2525.3,2525.2,8.78149]
[1725101256466,0.0059446,2525.3,2525.2,9.16909431]
[1725101257272,0.0059446,2525.3,2525.2,8.78149]
[1725101259577,0.0059446,2525.3,2525.2,5.57369]
[1725101260172,0.0059446,2525.3,2525.2,8.78149]
[1725101261065,0.0059446,2525.3,2525.2,5.57369]
[1725101261509,0.0059446,2525.3,2525.2,8.78149]
[1725101262782,0.3704,2525.6,2525.5,0.23756]
[1725101263174,0.3704,2525.6,2525.5,4.19676]
[1725101263770,0.3704,2525.6,2525.5,7.40456]
[1725101265774,0.3704,2525.6,2525.5,4.19676]
[1725101266076,0.3704,2525.6,2525.5,7.40456]
[1725101269684,0.3804,2525.7,2525.6,0.23755]
[1725101269873,0.0059446,2525.8,2525.7,0.23754]
[1725101270275,0.0059446,2525.8,2525.7,4.19674]
[1725101273183,0.0059446,2525.8,2525.7,0.23754]
[1725101277107,0.0059446,2525.8,2525.6,0.23755]
[1725101277719,0.0059446,2525.8,2525.7,0.23754]
[1725101284722,0.0059446,2525.8,2525.7,0.60654]
[1725101285415,0.0059446,2525.8,2525.7,1.60654]
[1725101285619,0.0059446,2525.8,2525.7,5.56574]
[1725101285934,0.3753,2526.0,2525.9,0.23752]
[1725101286113,0.3753,2526.0,2525.9,3.44532]
[1725101286948,0.3753,2526.0,2525.9,4.44532]
[1725101292128,0.3616,2526.1,2526.0,0.23751]
[1725101292721,0.3616,2526.1,2526.0,0.61461]
[1725101296333,0.3827446,2526.2,2526.1,0.2375]
[1725101296579,0.3827446,2526.2,2526.1,1.2375]
[1725101300324,0.3827446,2526.2,2526.1,5.1959]
[1725101300325,0.0059446,2526.2,2526.1,5.1959]
[1725101300521,0.3798,2526.6,2526.5,0.23747]
[1725101300730,0.3861,2526.8,2526.7,0.23745]
[1725101300928,0.3861,2526.8,2526.7,5.19505]
[1725101301231,0.3861,2526.8,2526.7,1.23745]
[1725101302123,0.3798,2527.0,2526.7,1.23745]
[1725101302317,0.3798,2527.0,2526.5,3.2078]
[1725101302527,6.25229377,2526.9,2526.5,3.2078]
[1725101302781,0.23744,2526.8,2526.5,3.2078]
[1725101303118,6.01485377,2526.9,2526.5,4.2078]
[1725101303119,5.25228377,2526.9,2526.5,4.2078]
[1725101303251,5.01485377,2526.9,2526.5,4.2078]
[1725101304024,0.23744,2526.8,2526.5,3.2078]
[1725101305229,6.25228377,2526.9,2526.5,3.2078]
[1725101305628,5.25228377,2526.9,2526.5,3.2078]
[1725101306531,5.25228377,2526.9,2526.5,4.2078]
[1725101307330,5.25228377,2526.9,2526.5,1.0]
[1725101308523,5.01485377,2526.9,2526.5,1.23746]
[1725101309126,5.25228377,2526.9,2526.5,1.23746]
[1725101309367,5.25228377,2526.9,2526.5,1.0]
[1725101309586,5.25228377,2526.9,2526.5,1.23747]
[1725101309725,5.25228377,2526.9,2526.5,1.0]
[1725101311027,0.23744,2526.8,2526.5,1.0]
[1725101311535,4.46376492,2526.7,2526.5,1.0]
[1725101311728,0.3743,2526.6,2526.5,1.0]
[1725101311931,0.7271,2526.6,2526.5,1.0]
[1725101312877,0.7271,2526.6,2526.5,1.23747]
[1725101314734,0.7271,2526.6,2526.5,1.60657]
[1725101314935,0.7271,2526.6,2526.5,1.0]
[1725101316344,0.7271,2526.6,2526.5,1.23747]
[1725101317237,0.7271,2526.6,2526.5,1.0]
[1725101317447,4.6847,2526.6,2526.3,4.2078]
[1725101317744,0.3663,2526.5,2526.3,3.2078]
[1725101317949,4.89478829,2526.5,2526.3,3.2078]
[1725101318241,8.85318829,2526.5,2526.3,3.44528]
[1725101318451,4.89478829,2526.5,2526.3,3.44528]
[1725101319347,4.89478829,2526.5,2526.4,1.23748]
[1725101319586,0.7271,2526.6,2526.4,1.23748]
[1725101319772,0.7271,2526.6,2526.5,1.0]
[1725101321442,0.7271,2526.6,2526.5,1.23747]
[1725101321642,0.7271,2526.6,2526.5,1.0]
[1725101324036,0.7271,2526.6,2526.4,1.23748]
[1725101324245,0.7271,2526.6,2526.4,1.0]
[1725101324649,0.7271,2526.6,2526.4,1.23747]
[1725101328347,0.7271,2526.6,2526.4,1.0]
[1725101329048,0.7271,2526.6,2526.4,1.23747]
[1725101329255,0.7271,2526.6,2526.5,0.23747]
[1725101329737,0.7271,2526.6,2526.4,1.23747]
[1725101330447,0.96456,2526.6,2526.4,1.0]
[1725101330651,0.96456,2526.6,2526.4,1.23747]
[1725101330652,0.7271,2526.6,2526.4,1.23747]
[1725101332356,0.7271,2526.6,2526.4,1.0]
[1725101332553,0.7271,2526.6,2526.4,1.23747]
[1725101332953,0.7271,2526.6,2526.5,0.23747]
[1725101333662,0.7271,2526.6,2526.5,1.60147]
[1725101334364,3.2078,2527.0,2526.5,1.364]
[1725101334365,3.44522,2527.0,2526.5,1.364]
[1725101334555,0.757,2526.9,2526.6,0.58995]
[1725101334754,5.01309937,2526.9,2526.6,0.58995]
[1725101334957,8.97069937,2526.9,2526.6,0.58995]
[1725101335657,5.01309937,2526.9,2526.6,0.58995]
[1725101336359,5.01309937,2526.9,2526.6,0.23745]
[1725101338966,5.25052937,2526.9,2526.6,0.23745]
[1725101339163,5.01309937,2526.9,2526.5,1.7376]
[1725101339465,5.01309937,2526.9,2526.7,0.23745]
[1725101340164,5.01309937,2526.9,2526.5,1.7376]
[1725101340464,0.757,2526.9,2526.8,0.23744]
[1725101341671,18.2604582,2526.9,2526.3,3.44528]
[1725101342242,18.2604582,2526.9,2526.4,0.23747]
[1725101342243,0.23745,2526.7,2526.4,0.23747]
[1725101342425,0.362,2526.6,2526.4,0.23747]
[1725101343369,0.362,2526.6,2526.5,0.23747]
[1725101343579,0.7417,2526.6,2526.5,0.23747]
[1725101343957,0.7417,2526.6,2526.4,0.23747]
[1725101344264,0.3697,2526.5,2526.4,0.23747]
[1725101347559,0.3697,2526.5,2526.3,3.81468]
[1725101347761,0.3697,2526.5,2526.4,0.23748]
[1725101348458,0.3697,2526.5,2526.3,3.44528]
[1725101349164,0.60717,2526.5,2526.3,3.2078]
[1725101349664,0.60717,2526.5,2526.1,1.5905]
[1725101349876,0.60717,2526.5,2526.2,0.62523182]
[1725101350169,0.23748,2526.4,2526.1,1.0]
[1725101350471,0.23748,2526.4,2526.2,0.38774921]
[1725101350678,0.3656,2526.3,2526.1,1.0]
[1725101350890,0.3656,2526.3,2526.2,0.38779166]
[1725101351276,0.3656,2526.3,2526.1,1.2375]
[1725101352467,0.3656,2526.3,2526.1,1.0]
[1725101352667,0.3656,2526.3,2526.1,1.2375]
[1725101353276,0.60309,2526.3,2526.1,1.0]
[1725101353586,0.3656,2526.3,2526.1,1.2375]
[1725101356782,0.60309,2526.3,2526.1,1.0]
[1725101357103,0.60309,2526.3,2525.8,0.0059446]
[1725101357104,4.80173261,2526.2,2525.8,0.0059446]
[1725101357281,0.23752,2526.0,2525.8,0.0059446]
[1725101357665,5.02265261,2525.9,2525.8,0.0059446]
[1725101358070,4.55342,2525.9,2525.8,0.0059446]
[1725101358298,8.80724452,2525.9,2525.8,0.0059446]
[1725101361184,8.56972452,2525.9,2525.8,0.0059446]
[1725101361484,8.80724452,2525.9,2525.8,0.0059446]
[1725101362377,14.80724452,2525.9,2525.8,0.0059446]
[1725101362874,8.80724452,2525.9,2525.8,0.0059446]
[1725101364375,14.80724452,2525.9,2525.8,0.0059446]
[1725101364675,8.80724452,2525.9,2525.8,0.0059446]
[1725101365039,14.80724452,2525.9,2525.8,0.0059446]
[1725101366895,8.80724452,2525.9,2525.8,0.0059446]
[1725101367074,14.80724452,2525.9,2525.8,0.0059446]
[1725101367891,8.56972452,2525.9,2525.8,0.0059446]
[1725101368582,14.56972452,2525.9,2525.8,0.0059446]
[1725101368782,8.56972452,2525.9,2525.8,0.0059446]
[1725101368983,14.80724452,2525.9,2525.8,0.0059446]
[1725101369180,8.80724452,2525.9,2525.8,0.0059446]
[1725101370482,8.56972452,2525.9,2525.8,0.0059446]
[1725101371193,8.80724452,2525.9,2525.8,0.0059446]
[1725101372689,8.56972452,2525.9,2525.8,0.0059446]
[1725101375391,0.3733,2526.2,2525.8,3.9651446]
[1725101375588,0.3756,2526.1,2525.9,1.35252]
[1725101375794,4.75738542,2526.1,2525.9,1.35252]
[1725101377093,4.75738542,2526.1,2526.0,0.23751]
[1725101378497,4.75738542,2526.1,2525.9,1.35252]
[1725101378890,4.38178542,2526.1,2526.0,0.23751]
[1725101379088,6.1188,2526.5,2526.3,0.23748]
[1725101379089,4.2078,2526.5,2526.3,0.23748]
[1725101379286,3.2078,2526.5,2526.3,0.23748]
[1725101379596,4.40419958,2526.4,2526.3,0.23748]
[1725101381690,0.3887,2526.7,2526.4,0.23747]
[1725101381897,0.3887,2526.7,2526.4,0.97617]
[1725101382196,4.13747301,2526.6,2526.4,0.97617]
[1725101385097,4.13747301,2526.6,2526.4,0.7387]
[1725101385299,4.13747301,2526.6,2526.3,0.23748]
[1725101385300,5.13747301,2526.6,2526.3,0.23748]
[1725101388595,5.13747301,2526.6,2526.2,0.23749]
[1725101392799,5.13747301,2526.6,2526.3,0.23748]
[1725101395901,5.13747301,2526.6,2526.3,0.59578]
[1725101398147,4.13747301,2526.6,2526.4,0.23747]
[1725101398264,0.3887,2526.7,2526.4,0.23747]
[1725101398902,0.3887,2526.7,2526.5,0.23746]
[1725101400839,0.3887,2526.7,2526.3,0.7366]
[1725101401214,0.3887,2526.7,2526.6,0.23746]
[1725101401612,3.5618,2526.8,2526.7,0.23745]
[1725101403016,6.55004819,2527.4,2527.0,0.23741]
[1725101403017,3.2078,2527.2,2527.0,0.23741]
[1725101403336,3.5959,2527.2,2527.0,0.23741]
[1725101403509,5.25282889,2527.1,2526.9,0.23742]
[1725101405104,5.25282889,2527.1,2527.0,0.23742]
[1725101405304,1.0,2527.1,2527.0,0.23742]
[1725101406302,1.3815,2527.1,2527.0,0.23742]
[1725101406502,1.3815,2527.1,2526.9,0.23742]
[1725101406712,0.3815,2527.1,2527.0,0.23742]
[1725101408022,0.385,2527.3,2527.2,0.2374]
[1725101408311,0.3879,2527.6,2527.4,0.23737]
[1725101408509,3.44513,2528.0,2527.5,0.23737]
[1725101408729,0.3517,2527.7,2527.5,0.23737]
[1725101409315,3.43344464,2527.6,2527.4,0.23738]
[1725101410536,0.75,2527.8,2527.2,0.0059446]
[1725101410647,0.3802,2527.5,2527.3,0.23739]
[1725101410918,0.3621,2527.4,2527.3,0.23739]
[1725101411219,0.7217,2527.4,2527.3,0.23739]
[1725101411510,0.7217,2527.4,2527.3,4.19419]
[1725101411711,0.3596,2527.4,2527.3,4.19419]
[1725101411913,1.62055,2527.7,2527.3,0.23739]
[1725101412209,0.3802,2527.6,2527.3,0.23739]
[1725101414911,0.23738,2527.5,2527.2,3.2137446]
[1725101415121,0.23737,2527.5,2527.2,0.0059446]
[1725101415314,0.23739,2527.4,2527.2,0.0059446]
[1725101415515,0.3666,2527.3,2527.2,0.0059446]
[1725101415721,0.7253,2527.3,2527.2,0.0059446]
[1725101415914,0.7253,2527.3,2527.2,3.9627446]
[1725101416105,0.3587,2527.3,2527.2,5.2001446]
[1725101416323,0.3587,2527.3,2527.2,5.9098446]
[1725101417180,0.3587,2527.3,2527.2,5.6724446]
[1725101417415,0.3587,2527.3,2527.2,1.0059446]
[1725101417610,0.3587,2527.3,2527.2,0.0059446]
[1725101418015,0.3587,2527.3,2527.2,3.9627446]
[1725101418208,0.3587,2527.3,2527.2,0.0059446]
[1725101418814,0.3587,2527.3,2527.2,3.9627446]
[1725101419127,0.3587,2527.3,2527.2,4.2001446]
[1725101420017,0.3587,2527.3,2527.2,0.0059446]
[1725101421316,0.59609,2527.3,2527.2,0.0059446]
[1725101421820,0.59609,2527.3,2527.2,3.9627446]
[1725101422018,0.3587,2527.3,2527.2,0.0059446]
[1725101422218,0.3587,2527.3,2527.2,3.9627446]
[1725101422821,0.3587,2527.3,2527.2,4.2001446]
[1725101423029,0.3587,2527.3,2527.2,5.2001446]
[1725101426529,0.3666,2527.5,2527.3,0.23738]
[1725101426724,0.7443,2527.5,2527.3,0.23738]
[1725101427628,0.7443,2527.5,2527.4,0.23738]
[1725101430927,0.3777,2527.5,2527.4,0.23738]
[1725101434832,0.3777,2527.5,2527.3,0.59648]
[1725101435036,0.3777,2527.5,2527.4,0.23738]
[1725101435539,0.3777,2527.5,2527.3,0.59649]
[1725101435738,0.3777,2527.5,2527.4,0.23738]
[1725101438927,0.3777,2527.5,2527.2,4.2137446]
[1725101439130,0.3638,2527.4,2527.2,4.4511446]
[1725101439355,0.3638,2527.4,2527.3,0.23739]
[1725101439638,0.3802,2527.6,2527.4,0.23737]
[1725101439843,0.3802,2527.6,2527.4,1.23737]
[1725101444637,0.3802,2527.6,2527.2,3.2137446]
[1725101444941,0.23739,2527.4,2527.2,0.0059446]
[1725101445341,4.86828065,2527.3,2527.2,0.0059446]
[1725101446247,0.3676,2527.3,2527.2,0.0059446]
[1725101448951,0.3689,2527.5,2527.2,1.0059446]
[1725101449150,0.377,2527.4,2527.3,0.23739]
[1725101449346,0.377,2527.4,2527.2,1.2433446]
[1725101452248,3.63004819,2527.7,2527.3,7.1646]
[1725101452443,3.63004819,2527.8,2527.6,1.23736]
[1725101452759,3.99374819,2527.9,2527.6,1.23736]
[1725101452942,0.3589,2527.7,2527.6,1.23736]
[1725101453149,7.22604819,2528.1,2527.6,1.0]
[1725101453377,7.22604819,2528.1,2527.9,0.23733]
[1725101453378,7.97404819,2528.1,2527.9,0.23733]
[1725101453671,4.344,2528.1,2527.8,1.23734]
[1725101453847,4.344,2528.1,2527.8,1.62594]
[1725101454241,4.344,2528.1,2527.8,1.3886]
[1725101454438,4.344,2528.1,2527.8,1.62594]
[1725101454645,4.344,2528.1,2527.8,1.3886]
[1725101454844,4.344,2528.1,2527.8,1.0]
[1725101455048,7.97404819,2528.1,2527.8,1.0]
[1725101455257,4.344,2528.1,2527.7,1.3698]
[1725101455752,4.58132,2528.1,2527.7,1.3698]
[1725101455956,8.21136819,2528.1,2527.7,1.0]
[1725101456143,4.12834211,2528.0,2527.7,1.0]
[1725101456677,4.12834211,2528.0,2527.6,1.0]
[1725101458358,4.12834211,2528.0,2527.5,0.62386]
[1725101458359,4.12834211,2528.0,2527.8,1.0]
[1725101458557,4.58132,2528.1,2527.8,1.0]
[1725101459460,3.06611742,2528.5,2528.4,0.23729]
[1725101459652,0.59293,2529.7,2528.4,0.23729]
[1725101459653,13.03098232,2529.5,2528.4,0.58324828]
[1725101459978,0.3851,2528.9,2528.8,1.23725]
[1725101460161,0.3851,2528.9,2528.8,1.0]
[1725101460955,0.3851,2528.9,2528.7,0.00593249]
[1725101461565,0.7445,2528.9,2528.7,0.00593249]
[1725101462275,0.383,2528.8,2528.7,0.00593249]
[1725101462751,0.383,2528.8,2528.7,3.96033249]
[1725101463157,0.383,2528.8,2528.7,0.00593249]
[1725101463158,0.62025,2528.8,2528.7,0.00593249]
[1725101463371,0.383,2528.8,2528.7,0.00593249]
[1725101465752,4.57465,2528.8,2528.7,0.00593249]
[1725101466958,4.3374,2528.8,2528.7,0.00593249]
[1725101467160,4.57465,2528.8,2528.7,0.00593249]
[1725101467465,4.3374,2528.8,2528.7,0.00593249]
[1725101467656,4.57465,2528.8,2528.7,0.00593249]
[1725101468276,13.5452,2528.8,2528.7,0.00593249]
[1725101468455,13.5452,2528.8,2527.5,0.38699066]
[1725101468456,2.39,2528.5,2527.7,0.3717]
[1725101469101,0.23731,2528.2,2527.7,0.3717]
[1725101469114,0.74,2528.4,2527.7,0.3717]
[1725101469115,0.23732,2528.1,2527.7,0.3717]
[1725101469353,0.3577,2528.0,2527.7,0.3717]
[1725101469557,0.3691,2527.9,2527.7,0.3717]
[1725101469754,4.92212346,2527.9,2527.6,3.21373249]
[1725101469945,4.92212346,2527.9,2527.6,3.57703249]
[1725101470163,2.39,2527.8,2527.6,3.21373249]
[1725101470365,0.23735,2527.7,2527.6,0.00593249]
[1725101470554,8.7417627,2527.7,2527.6,0.00593249]
[1725101471646,8.5044127,2527.7,2527.6,0.00593249]
[1725101474385,4.5484127,2527.7,2527.6,0.00593249]
[1725101474862,8.7417627,2527.7,2527.6,0.00593249]
[1725101475066,7.40115,2527.7,2527.6,0.00593249]
[1725101475491,11.91420311,2527.7,2527.6,0.00593249]
[1725101476470,17.91420311,2527.7,2527.6,0.00593249]
[1725101476660,2.39,2527.6,2527.0,0.3725]
[1725101476873,2.39,2527.6,2526.8,3.5973]
[1725101477160,0.2374,2527.3,2526.8,3.5803]
[1725101477477,0.7382,2527.2,2526.8,3.81774]
[1725101477652,5.04268077,2527.2,2526.8,3.81774]
[1725101478382,5.28008077,2527.2,2526.8,3.5803]
[1725101479161,5.04268077,2527.2,2526.8,3.5803]
[1725101479367,5.04268077,2527.2,2526.9,0.23743]
[1725101480065,5.04268077,2527.2,2526.8,3.81773]
[1725101480367,5.04268077,2527.2,2526.9,0.23743]
[1725101483769,5.04268077,2527.2,2527.0,0.23742]
[1725101484067,4.66638077,2527.2,2527.1,0.23741]
[1725101484259,0.3619,2527.2,2527.0,0.23741]
[1725101484462,0.3619,2527.2,2526.9,0.7419]
[1725101484463,0.3619,2527.2,2527.1,0.23741]
[1725101484666,0.00593249,2527.3,2527.1,0.23741]
[1725101485380,0.00593249,2527.3,2527.0,0.23741]
[1725101486668,0.00593249,2527.3,2526.9,0.7419]
[1725101486863,0.00593249,2527.3,2527.2,0.2374]
[1725101487555,0.00593249,2527.3,2527.2,4.1942]
[1725101488167,0.00593249,2527.3,2527.2,10.1942]
[1725101489159,0.00593249,2527.3,2527.2,4.1942]
[1725101490867,0.00593249,2527.3,2527.1,3.4452]
[1725101491653,0.00593249,2527.3,2527.2,0.2374]
[1725101493469,0.00593249,2527.3,2527.2,4.1942]
[1725101495178,0.00593249,2527.3,2527.2,0.2374]
[1725101496072,8.4661773,2527.3,2527.1,3.2078]
[1725101496271,0.983,2527.2,2527.1,3.2078]
[1725101496675,9.41246675,2527.2,2527.1,3.2078]
[1725101496867,9.17506675,2527.2,2527.1,3.2078]
[1725101497672,9.17506675,2527.2,2527.0,0.23742]
[1725101497875,5.21826675,2527.2,2527.0,0.23742]
[1725101499288,5.21826675,2527.2,2527.1,0.23741]
[1725101500281,0.00593249,2527.3,2527.1,0.23741]
[1725101501538,0.00593249,2527.3,2527.2,0.2374]
[1725101502671,0.00593249,2527.3,2527.2,3.4452]
[1725101502888,2.39,2527.9,2527.2,3.4452]
[1725101502889,5.5978,2528.1,2527.8,0.23734]
[1725101503085,6.7223,2528.1,2527.8,0.23734]
[1725101503275,11.03558965,2528.1,2527.8,0.23734]
[1725101504089,11.27290965,2528.1,2527.8,0.23734]
[1725101504278,11.03558965,2528.1,2527.7,0.23735]
[1725101504534,11.27290965,2528.1,2527.7,0.23735]
[1725101504848,0.23733,2528.0,2527.6,0.23735]
[1725101505225,4.12829563,2527.9,2527.4,0.3677]
[1725101505376,4.12829563,2527.9,2527.6,0.23736]
[1725101506681,4.36563563,2527.9,2527.6,0.23736]
[1725101507182,0.23735,2527.8,2527.4,0.23738]
[1725101507385,0.3867,2527.7,2527.4,0.23738]
[1725101507722,4.90832619,2527.6,2527.3,0.23739]
[1725101509286,5.14569619,2527.6,2527.2,0.23739]
[1725101509983,4.90832619,2527.6,2527.1,0.23741]
[1725101510186,0.23738,2527.5,2527.1,0.23741]
[1725101510377,3.44518,2527.5,2527.1,0.23741]
[1725101510583,4.1294813,2527.4,2527.1,0.23741]
[1725101510782,0.3589,2527.3,2527.1,0.23741]
[1725101510984,0.7316,2527.3,2527.2,0.2374]
[1725101512079,4.1294813,2527.4,2527.3,0.23739]
[1725101512381,0.7316,2527.5,2527.4,0.23738]
[1725101512783,0.3727,2527.5,2527.4,0.23738]
[1725101512994,0.3589,2527.8,2527.4,3.9568]
[1725101513189,0.7316,2527.8,2527.7,0.23735]
[1725101513379,0.7316,2527.8,2527.5,0.3743]
[1725101513380,5.0675733,2527.8,2527.6,0.23736]
[1725101514294,5.3049233,2527.8,2527.5,0.23737]
[1725101515293,5.0675733,2527.8,2527.5,0.23737]
[1725101515791,5.3049233,2527.8,2527.5,0.23737]
[1725101515989,0.23736,2527.7,2527.3,3.44519]
[1725101516192,0.23736,2527.7,2527.3,0.23739]
[1725101517196,0.23736,2527.7,2527.4,0.23738]
[1725101517488,0.23736,2527.7,2527.3,0.23739]
[1725101517884,0.23736,2527.7,2527.4,0.23738]
[1725101519092,0.23736,2527.7,2527.2,4.5323]
[1725101519093,8.91958479,2527.8,2527.5,0.23737]
[1725101519289,5.0675733,2527.8,2527.6,0.23736]
[1725101521291,5.3049133,2527.8,2527.4,0.23738]
[1725101521597,5.3049133,2527.8,2527.5,0.23737]
[1725101521990,5.3049133,2527.8,2527.4,0.23738]
[1725101522483,5.3049133,2527.8,2527.5,0.23737]
[1725101522892,8.91957479,2527.8,2527.5,0.23737]
[1725101523093,5.0675733,2527.8,2527.5,0.23737]
[1725101523286,5.0675733,2527.8,2527.3,3.2078]
[1725101523487,5.0675733,2527.8,2527.7,0.23735]
[1725101524801,4.3359733,2527.8,2527.7,0.23735]
[1725101526096,0.7475,2528.0,2527.9,0.23733]